[Event "Gibraltar Amateurs A 2019"]
[Site "Caleta"]
[Date "2019.01.23"]
[Round "3"]
[White "Escanciano Reyero, Daniel"]
[Black "Olaizola, Miguel"]
[Result "0-1"]
[ECO "D71"]
[WhiteElo "1732"]
[BlackElo "1831"]
[Annotator "NA"]
[PlyCount "84"]
[EventDate "2019.01.18"]
[EventType "swiss"]
[EventCountry "GGB"]
[SourceTitle "playchess.com"]
[Source "ChessBase"]
[SourceQuality "1"]
[TimeControl "6600+10"]

1. d4 {[%emt 0:07:46]} d5 {[%emt 0:00:38]} 2. c4 {[%emt 0:00:13]} c6 {[%emt 0:00:43]} 3. cxd5 {[%emt 0:00:39]} cxd5 {[%emt 0:00:12]} 4. Nc3 {[%emt 0:00:09]} Nf6 {[%emt 0:00:04]} 5. g3 {[%emt 0:00:15]} g6 {[%emt 0:01:36]} 6. Bg2 {[%emt 0:00:05]} Bg7 {[%emt 0:00:23]} 7. Bg5 {[%emt 0:01:16]} Ne4 {[%emt 0:04:23] D71: Fianchetto Grünfeld: 3 g3 d5 sidelines and 5 cxd5 (without Nf3)} (7... Nc6 8. Bxf6 Bxf6 9. e3 e6 10. Nge2 Bd7 11. Nf4 Rc8 12. h4 h5 13. O-O Bg7 14. Qf3 O-O 15. Rfc1 {0-1 (64) Vavrak,P (2474)-Votava,J (2542) Czechia 2008}) 8. Nxe4 {[%emt 0:03:48]} dxe4 {[%emt 0:00:29]} 9. Qa4+ $146 {[%emt 0:07:25]} ({Predecessor:} 9. Bxe4 Qxd4 10. Qxd4 Bxd4 11. Nf3 Bxb2 12. Rb1 Bc3+ 13. Kf1 h6 14. Rc1 Nd7 15. Rxc3 hxg5 16. Nxg5 {½-½ (59) Sahuanay Calsin,O-Carrillo Jaramillo,J (1505) Lima 2017}) 9... Bd7 {[%emt 0:06:16]} 10. Qa3 {[%emt 0:09:26]} h6 {[%emt 0:15:35]} 11. Bd2 {[%emt 0:17:54]} Nc6 {[%emt 0:14:07]} 12. e3 {[%emt 0:00:35]} Bf5 {[%emt 0:08:14]} 13. Ne2 {[%emt 0:01:25]} O-O {[%emt 0:01:01]} 14. O-O {[%emt 0:00:49]} e5 {[%emt 0:00:30]} 15. d5 {[%emt 0:08:47]} Qxd5 {[%emt 0:05:45]} 16. Rad1 {[%emt 0:05:10]} Qe6 {[%emt 0:02:42]} 17. f3 {[%emt 0:16:40]} exf3 {[%emt 0:07:49]} 18. Bxf3 {[%emt 0:01:35]} Bg4 {[%emt 0:08:53]} 19. e4 {[%emt 0:03:19]} Bh3 {[%emt 0:07:36]} 20. Rf2 {[%emt 0:01:28]} Rad8 {[%emt 0:01:45]} 21. Nc3 {[%emt 0:02:11]} Nd4 {[%emt 0:01:48]} 22. Bh1 {[%emt 0:00:39]} Bg4 {[%emt 0:07:17]} 23. Rdf1 {[%emt 0:02:39]} Ne2+ {[%emt 0:05:16]} 24. Nxe2 {[%emt 0:01:33]} Rxd2 {[%emt 0:00:55]} 25. Nc3 {[%emt 0:00:39]} Rxf2 {[%emt 0:04:51]} 26. Rxf2 {[%emt 0:00:07]} a6 {[%emt 0:01:34]} 27. Nd5 $17 {[%emt 0:01:05]} b5 {[%emt 0:00:41]} 28. Rc2 {[%emt 0:05:15]} Rd8 {[%emt 0:00:22]} 29. Qc5 {[%emt 0:01:21]} Kh7 {[%emt 0:00:54]} 30. Bg2 {[%emt 0:01:55]} Rc8 {[%emt 0:01:04]} 31. Qxc8 {[%emt 0:01:15]} Qxc8 {[%emt 0:00:02]} 32. Rxc8 {[%emt 0:00:09]} Bxc8 {[%emt 0:00:12]} 33. Kf2 {[%emt 0:01:16]} f5 {[%emt 0:00:58]} 34. Bh3 {[%emt 0:00:40]} Be6 {[%emt 0:00:07]} 35. Nc7 {[%emt 0:00:37]} Bxa2 {[%emt 0:00:16]} 36. exf5 {[%emt 0:00:13]} g5 {[%emt 0:00:28]} 37. Nxa6 {[%emt 0:00:50]} e4 {[%emt 0:00:05]} 38. b4 {[%emt 0:00:27]} Bd4+ {[%emt 0:00:04]} 39. Ke1 {[%emt 0:00:42]} e3 {[%emt 0:00:41]} 40. Nc7 {[%emt 0:01:37]} Bc4 {[%emt 0:00:06]} 41. Ne6 {[%emt 0:00:12]} Bc3+ {[%emt 0:00:06]} 42. Kd1 {[%emt 0:00:09]} e2+ {[%emt 0:00:03]} 0-1

[Event "Gibraltar Amateurs A 2019"]
[Site "Caleta"]
[Date "2019.01.23"]
[Round "3"]
[White "Kuenitz, Klaus"]
[Black "Teh, Wee Zhun"]
[Result "0-1"]
[ECO "D14"]
[WhiteElo "1723"]
[BlackElo "1818"]
[Annotator "NA"]
[PlyCount "120"]
[EventDate "2019.01.18"]
[EventType "swiss"]
[EventCountry "GGB"]
[SourceTitle "playchess.com"]
[Source "ChessBase"]
[SourceQuality "1"]
[TimeControl "6600+10"]

1. d4 {[%emt 0:00:00]} d5 {[%emt 0:00:00]} 2. c4 {[%emt 0:00:25]} c6 {[%emt 0:00:10]} 3. cxd5 {[%emt 0:00:34]} cxd5 {[%emt 0:00:03]} 4. Nc3 {[%emt 0:00:17]} Nf6 {[%emt 0:00:06]} 5. Nf3 {[%emt 0:00:35]} Nc6 {[%emt 0:00:04]} 6. Bf4 {[%emt 0:00:30]} Bf5 {[%emt 0:00:15]} 7. e3 {[%emt 0:00:46]} e6 {[%emt 0:00:02]} 8. Bb5 {[%emt 0:06:50]} Nd7 {[%emt 0:00:02]} 9. O-O {[%emt 0:01:43]} Rc8 {[%emt 0:04:04]} 10. Rc1 {[%emt 0:02:05]} a6 {[%emt 0:04:15] D14: Slav Defence: Exchange variation with ...Bf5} (10... Be7 11. Na4 g5 12. Bg3 h5 13. Nc5 Nxc5 14. dxc5 h4 15. Bd6 Bxd6 16. cxd6 Qxd6 17. Nxg5 Qe5 18. Qa4 Qxb2 19. Bxc6+ bxc6 20. Rxc6 Rxc6 21. Qxc6+ {0-1 (31) Sokolov,I (2643)-Danin,A (2575) Koge 2013}) 11. Bd3 {[%emt 0:00:25]} Bxd3 {[%emt 0:04:33] LiveBook: 3 Games} 12. Qxd3 {[%emt 0:01:48]} Be7 {[%emt 0:00:09]} 13. h3 {[%emt 0:05:34]} O-O {[%emt 0:07:19]} 14. Rfe1 {[%emt 0:01:20]} h6 $146 {[%emt 0:01:16]} ({Predecessor:} 14... Nb6 15. Re2 f5 16. Ne5 Bd6 17. Nxc6 Rxc6 18. Bxd6 Qxd6 {0-1 (35) Cavaletto,M-Nordal,S ICCF corr 1994}) 15. Qd2 {[%emt 0:03:15]} Re8 {[%emt 0:22:07]} 16. Bg3 {[%emt 0:03:19]} Nb6 {[%emt 0:02:26]} 17. Qe2 {[%emt 0:04:24]} Nc4 {[%emt 0:09:02]} 18. Red1 {[%emt 0:02:30]} b5 {[%emt 0:04:00]} 19. b3 {[%emt 0:02:09]} Nd6 {[%emt 0:05:47]} 20. Bxd6 {[%emt 0:02:30]} Bxd6 {[%emt 0:00:27]} 21. Nb1 {[%emt 0:00:28]} Qa5 {[%emt 0:07:26]} 22. Qb2 {[%emt 0:03:48]} Ne7 {[%emt 0:08:00]} 23. Ne1 {[%emt 0:04:42]} b4 {[%emt 0:09:13]} 24. Nd3 {[%emt 0:01:19]} Qb5 {[%emt 0:03:20]} 25. Qe2 {[%emt 0:04:16]} Nf5 {[%emt 0:04:06]} 26. Kf1 {[%emt 0:08:30]} Qa5 $11 {[%emt 0:04:12]} 27. Qd2 {[%emt 0:01:28]} Qb6 {[%emt 0:00:13]} 28. Rxc8 {[%emt 0:00:24]} Rxc8 {[%emt 0:00:07]} 29. Rc1 {[%emt 0:00:19]} Rxc1+ {[%emt 0:03:39]} 30. Qxc1 {[%emt 0:01:59]} Bf8 {[%emt 0:00:47]} 31. Ke2 {[%emt 0:01:09]} Qa5 {[%emt 0:00:23]} 32. Qd2 {[%emt 0:00:38]} Qb5 {[%emt 0:00:21]} 33. Ke1 {[%emt 0:00:31]} Qb8 {[%emt 0:01:02]} 34. g3 {[%emt 0:01:40]} Bd6 {[%emt 0:00:50]} 35. Nf4 {[%emt 0:02:20]} Bxf4 {[%emt 0:01:17]} 36. gxf4 {[%emt 0:00:08]} Nd6 {[%emt 0:00:12]} 37. f3 {[%emt 0:01:17]} Qb5 {[%emt 0:00:36]} 38. Qe2 {[%emt 0:01:02]} Qc6 {[%emt 0:00:10]} 39. Qd2 {[%emt 0:00:58]} Nf5 {[%emt 0:00:35]} 40. Kf2 {[%emt 0:00:26]} Qd6 {[%emt 0:00:32]} 41. Ke2 {[%emt 0:02:43]} Qe7 {[%emt 0:00:41]} 42. Kd3 {[%emt 0:00:35]} Qb7 {[%emt 0:00:16]} 43. Qc2 {[%emt 0:01:15]} Qb5+ {[%emt 0:00:16]} 44. Kd2 {[%emt 0:00:27]} Qf1 {[%emt 0:00:12]} 45. Qd1 {[%emt 0:01:01]} Qf2+ {[%emt 0:01:12]} 46. Qe2 {[%emt 0:00:38]} Qg1 {[%emt 0:00:02]} 47. Qd3 {[%emt 0:02:28]} Qh2+ {[%emt 0:00:45]} 48. Qe2 {[%emt 0:00:10]} Qxh3 {[%emt 0:00:26]} 49. Qxa6 {[%emt 0:00:57]} Qxf3 {[%emt 0:00:06]} 50. Qe2 {[%emt 0:00:06]} Qe4 {[%emt 0:00:10]} 51. Qd3 {[%emt 0:00:13]} Qh1 {[%emt 0:00:10]} 52. a4 {[%emt 0:00:34]} bxa3 {[%emt 0:00:11]} 53. Nxa3 {[%emt 0:00:02]} Qa1 {[%emt 0:00:23]} 54. b4 {[%emt 0:01:01]} Qb2+ {[%emt 0:00:09]} 55. Nc2 {[%emt 0:00:07]} Ng3 {[%emt 0:00:10]} 56. Qa3 {[%emt 0:02:29]} Ne4+ {[%emt 0:00:02]} 57. Kd3 {[%emt 0:00:35]} Nf2+ {[%emt 0:00:25]} 58. Kd2 {[%emt 0:00:20]} Ne4+ {[%emt 0:00:02]} 59. Kd3 {[%emt 0:05:50]} Qb1 {[%emt 0:00:02]} 60. Qa1 {[%emt 0:00:39]} Qb3+ {[%emt 0:00:02]} 0-1

[Event "Gibraltar Amateurs A 2019"]
[Site "Caleta"]
[Date "2019.01.23"]
[Round "3"]
[White "Fong, Mi Yen"]
[Black "Gonzalez Pabollet, Jesus Maria S"]
[Result "0-1"]
[ECO "B23"]
[WhiteElo "1687"]
[BlackElo "1875"]
[Annotator "NA"]
[PlyCount "86"]
[EventDate "2019.01.18"]
[EventType "swiss"]
[EventCountry "GGB"]
[SourceTitle "playchess.com"]
[Source "ChessBase"]
[SourceQuality "1"]
[TimeControl "6600+10"]

1. e4 {[%emt 0:00:00]} c5 {[%emt 0:00:01]} 2. Nc3 {[%emt 0:00:13]} e6 {[%emt 0:00:32]} 3. f4 {[%emt 0:00:44]} Nc6 {[%emt 0:00:42]} 4. Nf3 {[%emt 0:00:34]} d5 {[%emt 0:03:38]} 5. e5 {[%emt 0:01:52]} a6 {[%emt 0:01:55]} 6. a4 {[%emt 0:00:34] B23: Closed Sicilian: Lines without g3} (6. Ne2 d4 7. Ng3 Nge7 8. c4 dxc3 9. dxc3 Qxd1+ 10. Kxd1 Nf5 11. Bd3 b6 12. Kc2 Be7 13. Be4 Bb7 14. Nxf5 {0-1 (30) Mas,H (2386)-Sermek,D (2509) Kuala Lumpur 2008}) 6... Nh6 {[%emt 0:02:56]} 7. Be2 {[%emt 0:01:29]} Nf5 {[%emt 0:03:13]} 8. O-O {[%emt 0:00:22]} Be7 {[%emt 0:03:43]} 9. Qe1 {[%emt 0:05:42]} h5 $146 {[%emt 0:00:42]} ({Predecessor:} 9... O-O 10. Nd1 Nb4 11. Bd3 c4 12. Bxf5 exf5 13. Qe2 Nxc2 {0-1 (27) Reznicek,M (2112)-Dambrauskas,V (2301) Karvina 2006}) 10. Bd3 {[%emt 0:00:50]} Nb4 {[%emt 0:06:41]} 11. Bxf5 {[%emt 0:05:39]} exf5 {[%emt 0:00:03]} 12. Qd1 $1 {[%emt 0:00:13]} d4 {[%emt 0:05:11]} 13. Na2 {[%emt 0:01:55]} Nd5 {[%emt 0:01:07]} 14. d3 {[%emt 0:00:37]} b5 {[%emt 0:21:23]} 15. c3 {[%emt 0:02:50]} Bb7 {[%emt 0:01:13]} 16. Qb3 {[%emt 0:04:56]} Qb6 {[%emt 0:04:40]} 17. Bd2 {[%emt 0:07:24]} dxc3 {[%emt 0:03:06]} 18. a5 {[%emt 0:06:14]} Qa7 {[%emt 0:00:30]} 19. Qd1 {[%emt 0:03:04]} cxd2 {[%emt 0:02:01]} 20. Qxd2 {[%emt 0:00:09]} O-O {[%emt 0:07:50]} 21. Rae1 {[%emt 0:00:16]} Nc7 {[%emt 0:05:36]} 22. Ng5 {[%emt 0:00:37]} Ne6 {[%emt 0:01:09]} 23. Kh1 {[%emt 0:01:25]} Rad8 {[%emt 0:02:07]} 24. Qe3 {[%emt 0:02:37]} Rd4 {[%emt 0:05:34]} 25. Nxe6 {[%emt 0:01:57]} fxe6 {[%emt 0:00:03]} 26. Qh3 {[%emt 0:00:07]} h4 {[%emt 0:02:56]} 27. Nc1 {[%emt 0:00:32]} Rfd8 {[%emt 0:00:39]} 28. Re3 {[%emt 0:00:41]} c4 {[%emt 0:02:28]} 29. b3 {[%emt 0:02:09]} cxd3 {[%emt 0:01:15]} 30. Nxd3 {[%emt 0:00:09]} Qa8 {[%emt 0:02:49]} 31. Ne1 {[%emt 0:04:10]} Rd2 {[%emt 0:00:38]} 32. Rc3 {[%emt 0:00:33]} Bc6 {[%emt 0:04:10]} 33. Nf3 {[%emt 0:03:13]} Rd1 {[%emt 0:01:34]} 34. Rc1 {[%emt 0:01:22]} R1d3 {[%emt 0:00:17]} 35. b4 {[%emt 0:01:46]} Rb3 {[%emt 0:00:32]} 36. Rb1 {[%emt 0:02:47]} Rdd3 {[%emt 0:00:48]} 37. Rxb3 {[%emt 0:02:57]} Rxb3 {[%emt 0:00:02]} 38. Kg1 {[%emt 0:00:41]} Qa7+ {[%emt 0:00:45]} 39. Kh1 {[%emt 0:00:07]} Rxb4 $19 {[%emt 0:01:19]} (39... Qe3 $142 40. Ra1 Bxb4 41. Qxh4 Bxf3 42. Qg3 Bd5 43. Qxe3 Rxe3 44. Rf1 Re1 45. Rxe1 Bxe1 46. Kg1 b4 47. Kf1 b3 48. Kxe1 b2 49. Kf2 b1=Q 50. Ke3 Qe4+ 51. Kd2 Qd4+ 52. Kc2 Bc4 53. g3 Qd3+ 54. Kb2 Qd2+ 55. Kb1 Bd3+ 56. Ka1 Qc1+ 57. Ka2 Bc4#) 40. Nxh4 {[%emt 0:00:14]} Qf2 {[%emt 0:01:45]} 41. Qd3 {[%emt 0:04:35]} Qxh4 {[%emt 0:00:25]} 42. Qd2 {[%emt 0:01:57]} Rc4 {[%emt 0:00:37]} 43. h3 {[%emt 0:00:17]} Qxh3+ {[%emt 0:00:57]} 0-1

[Event "Gibraltar Amateurs A 2019"]
[Site "Caleta"]
[Date "2019.01.23"]
[Round "3"]
[White "White, Gary"]
[Black "Omtvedt, Aleksander"]
[Result "0-1"]
[ECO "A03"]
[WhiteElo "1623"]
[BlackElo "1896"]
[Annotator "NA"]
[PlyCount "150"]
[EventDate "2019.01.18"]
[EventType "swiss"]
[EventCountry "GGB"]
[SourceTitle "playchess.com"]
[Source "ChessBase"]
[SourceQuality "1"]
[TimeControl "6600+10"]

1. f4 {[%emt 0:00:00]} d5 {[%emt 0:00:00]} 2. Nf3 {[%emt 0:00:05]} g6 {[%emt 0:00:00]} 3. e3 {[%emt 0:02:06]} Bg7 {[%emt 0:00:08]} 4. Be2 {[%emt 0:00:12]} c5 {[%emt 0:00:08]} 5. O-O {[%emt 0:00:06]} Nc6 {[%emt 0:00:11]} 6. Qe1 {[%emt 0:02:19] A03: Bird's Opening with 1...d5} (6. d3 Nf6 7. Ne5 Qc7 8. Nxc6 bxc6 9. Nc3 O-O 10. e4 Ba6 11. Kh1 c4 12. Qe1 cxd3 13. cxd3 e6 14. Be3 Rfd8 {1-0 (31) Adhiban,B (2655)-Eljanov,P (2711) Riadh 2017}) 6... Nh6 {[%emt 0:01:50]} 7. d3 {[%emt 0:02:49]} Nf5 {[%emt 0:01:10]} 8. Bd1 {[%emt 0:00:29]} O-O {[%emt 0:01:05]} 9. e4 {[%emt 0:03:35]} dxe4 {[%emt 0:01:38]} 10. dxe4 {[%emt 0:00:19]} Nfd4 {[%emt 0:00:16]} 11. c3 {[%emt 0:00:52]} Nxf3+ {[%emt 0:00:52]} 12. Bxf3 {[%emt 0:00:37]} Qc7 $146 {[%emt 0:06:58]} ({Predecessor:} 12... e5 13. f5 b6 14. Qg3 {1-0 (25) Brustkern,J (2287)-Kornitzky,T (1943) Berlin 2017}) 13. Be3 {[%emt 0:12:23]} b6 {[%emt 0:02:48]} 14. Nd2 {[%emt 0:01:49]} Bb7 {[%emt 0:02:42]} 15. Qh4 {[%emt 0:06:35]} Rad8 {[%emt 0:01:49]} 16. Rae1 {[%emt 0:03:56]} Rd3 {[%emt 0:02:38]} 17. Rf2 {[%emt 0:05:03]} e6 {[%emt 0:02:58]} 18. Nf1 {[%emt 0:01:46]} Qd8 {[%emt 0:01:00]} 19. Qh3 {[%emt 0:04:08]} Ne7 {[%emt 0:04:33]} 20. Ng3 {[%emt 0:02:59]} Qd7 {[%emt 0:05:52]} 21. f5 {[%emt 0:01:13]} exf5 {[%emt 0:05:40]} 22. exf5 {[%emt 0:00:54]} Bxf3 {[%emt 0:09:55]} 23. Rxf3 {[%emt 0:00:48]} Nxf5 {[%emt 0:04:21]} 24. Nxf5 {[%emt 0:00:43]} gxf5 {[%emt 0:00:10]} 25. Qxf5 {[%emt 0:09:34]} Qxf5 {[%emt 0:06:14]} 26. Rxf5 {[%emt 0:00:02]} Rfd8 {[%emt 0:00:32]} 27. Kf2 {[%emt 0:11:04]} R8d5 {[%emt 0:01:37]} 28. Rf4 {[%emt 0:02:31]} Re5 {[%emt 0:02:03]} 29. Re2 {[%emt 0:01:26]} Kf8 {[%emt 0:02:33]} 30. Rh4 {[%emt 0:02:36]} h5 {[%emt 0:03:11]} 31. g4 {[%emt 0:02:17]} hxg4 {[%emt 0:00:38]} 32. Rxg4 {[%emt 0:00:23]} Rd1 {[%emt 0:00:32]} 33. Bh6 {[%emt 0:12:59]} Rf5+ {[%emt 0:02:23]} 34. Rf4 $11 {[%emt 0:01:30]} Rxf4+ {[%emt 0:06:52]} 35. Bxf4 {[%emt 0:00:23]} c4 {[%emt 0:02:41]} 36. Re4 {[%emt 0:03:20]} Rb1 {[%emt 0:00:59]} 37. Bd6+ {[%emt 0:01:51]} Kg8 {[%emt 0:00:14]} 38. Ba3 {[%emt 0:00:35]} b5 {[%emt 0:00:40]} 39. Re7 {[%emt 0:00:28]} b4 {[%emt 0:06:39]} 40. Bxb4 {[%emt 0:02:14]} Rxb2+ {[%emt 0:00:15]} 41. Re2 {[%emt 0:00:01]} Rb1 {[%emt 0:01:20]} 42. Re4 {[%emt 0:01:25]} Rb2+ {[%emt 0:01:25]} 43. Re2 {[%emt 0:00:50]} Rxe2+ {[%emt 0:00:23]} 44. Kxe2 {[%emt 0:00:02]} f5 {[%emt 0:00:09]} 45. Kf3 {[%emt 0:01:01]} Kf7 {[%emt 0:00:17]} 46. Kf4 {[%emt 0:00:47]} Ke6 {[%emt 0:03:39]} 47. a4 {[%emt 0:01:39]} Bh6+ {[%emt 0:00:11]} 48. Kf3 {[%emt 0:00:01]} Bg7 {[%emt 0:01:37]} 49. Kf4 {[%emt 0:00:17]} Be5+ {[%emt 0:00:15]} 50. Kf3 {[%emt 0:00:26]} Bxh2 {[%emt 0:00:07]} 51. Bc5 {[%emt 0:00:07]} a6 {[%emt 0:00:13]} 52. Bd4 {[%emt 0:00:02]} Kd5 {[%emt 0:00:47]} 53. Be3 {[%emt 0:00:21]} Be5 {[%emt 0:00:45]} 54. Bd2 {[%emt 0:00:01]} Kc6 {[%emt 0:01:10]} 55. Be3 {[%emt 0:00:49]} Bxc3 {[%emt 0:02:53]} 56. Kf4 {[%emt 0:00:01]} Bb2 {[%emt 0:00:23]} 57. Kxf5 {[%emt 0:00:35]} Kd5 {[%emt 0:00:00]} 58. Bf4 {[%emt 0:00:34]} Bg7 {[%emt 0:03:00]} 59. Bc1 {[%emt 0:00:03]} c3 {[%emt 0:00:15]} 60. Kg6 {[%emt 0:00:12]} Bh8 {[%emt 0:00:27]} 61. Kh7 {[%emt 0:00:01]} Bd4 {[%emt 0:00:15]} 62. Kg6 {[%emt 0:00:01]} Ke4 {[%emt 0:00:01]} 63. Kf7 {[%emt 0:00:11]} Kd5 {[%emt 0:01:30]} 64. Ke7 {[%emt 0:00:07]} Kc4 {[%emt 0:00:05]} 65. Kd6 {[%emt 0:00:02]} a5 {[%emt 0:00:34]} 66. Kc6 {[%emt 0:00:02]} c2 {[%emt 0:00:38]} 67. Kd6 {[%emt 0:00:12]} Bc3 {[%emt 0:00:15]} 68. Kc6 {[%emt 0:00:08]} Be1 {[%emt 0:00:40]} 69. Kb6 {[%emt 0:00:17]} Kb4 {[%emt 0:00:20]} 70. Kc6 {[%emt 0:00:08]} Kxa4 {[%emt 0:00:01]} 71. Kc5 {[%emt 0:00:00]} Kb3 {[%emt 0:00:01]} 72. Kd4 {[%emt 0:00:04]} a4 {[%emt 0:00:01]} 73. Kd3 {[%emt 0:00:01]} Bb4 {[%emt 0:00:10]} 74. Bf4 {[%emt 0:00:24]} Bc3 {[%emt 0:00:13]} 75. Bc1 {[%emt 0:00:06]} Bb2 {[%emt 0:00:01] Kd4 [%clk 00:01:21] [%emt 00:01:15]} 0-1

[Event "Gibraltar Amateurs A 2019"]
[Site "Caleta"]
[Date "2019.01.24"]
[Round "4"]
[White "Omtvedt, Aleksander"]
[Black "Kuenitz, Klaus"]
[Result "1-0"]
[ECO "E16"]
[WhiteElo "1896"]
[BlackElo "1723"]
[Annotator "NA"]
[PlyCount "75"]
[EventDate "2019.01.18"]
[EventType "swiss"]
[EventCountry "GGB"]
[SourceTitle "playchess.com"]
[Source "ChessBase"]
[SourceQuality "1"]
[TimeControl "6600+10"]

1. d4 {[%emt 0:00:00]} d5 {[%emt 0:00:00]} 2. c4 {[%emt 0:00:42]} e6 {[%emt 0:00:11]} 3. Nf3 {[%emt 0:00:09]} Nf6 {[%emt 0:00:18]} 4. g3 {[%emt 0:03:19]} b6 {[%emt 0:03:38]} 5. Bg2 {[%emt 0:00:19]} Bb7 {[%emt 0:01:02]} 6. O-O {[%emt 0:03:56]} dxc4 {[%emt 0:04:04]} 7. Qa4+ {[%emt 0:02:29]} Nbd7 {[%emt 0:02:04]} 8. Ne5 {[%emt 0:04:13]} Bxg2 {[%emt 0:01:58]} 9. Kxg2 {[%emt 0:00:10]} Bd6 {[%emt 0:03:38]} 10. Nc6 {[%emt 0:02:05]} Qc8 {[%emt 0:01:34]} 11. Qxc4 {[%emt 0:01:47]} O-O {[%emt 0:01:31]} 12. f3 {[%emt 0:03:48]} Qb7 {[%emt 0:01:02]} 13. e4 {[%emt 0:01:33]} e5 {[%emt 0:00:36]} 14. d5 {[%emt 0:05:42]} a5 {[%emt 0:03:14]} 15. Bg5 {[%emt 0:04:18]} h6 {[%emt 0:00:37]} 16. Bxf6 {[%emt 0:01:29]} Nxf6 {[%emt 0:00:15]} 17. Nc3 {[%emt 0:00:13]} Rfe8 {[%emt 0:02:37]} 18. Rfc1 {[%emt 0:04:12]} Nd7 {[%emt 0:03:17]} 19. Nb5 {[%emt 0:02:52]} Bc5 {[%emt 0:03:21]} 20. a3 {[%emt 0:03:18]} a4 {[%emt 0:02:35]} 21. Nc3 {[%emt 0:05:15]} Qa6 {[%emt 0:00:38]} 22. Qxa6 {[%emt 0:01:56]} Rxa6 {[%emt 0:01:01]} 23. Nb5 {[%emt 0:00:13]} Bd6 {[%emt 0:00:58]} 24. Nxd6 {[%emt 0:03:02]} cxd6 {[%emt 0:00:25]} 25. Nb4 {[%emt 0:00:05]} Ra7 {[%emt 0:02:20]} 26. Rc6 {[%emt 0:01:14]} Kf8 {[%emt 0:01:32]} 27. Rxd6 {[%emt 0:01:32]} Rc7 {[%emt 0:01:15]} 28. Rc6 {[%emt 0:01:10]} Rec8 {[%emt 0:00:36]} 29. Rac1 {[%emt 0:00:49]} Rxc6 {[%emt 0:00:13]} 30. Rxc6 {[%emt 0:00:39]} Ra8 {[%emt 0:05:32]} 31. Kf2 {[%emt 0:01:37]} Ke7 {[%emt 0:00:52]} 32. Ke3 {[%emt 0:00:19]} Ra5 {[%emt 0:00:35]} 33. Rc8 {[%emt 0:04:41]} Rc5 {[%emt 0:01:14]} 34. Rc6 {[%emt 0:03:03]} Rxc6 {[%emt 0:03:42]} 35. Nxc6+ {[%emt 0:00:52]} Kd6 {[%emt 0:00:19]} 36. Kd3 {[%emt 0:02:23]} Kc5 {[%emt 0:00:51]} 37. Nd8 {[%emt 0:00:34]} f6 {[%emt 0:00:13]} 38. Ne6+ {[%emt 0:00:14]} 1-0

[Event "Gibraltar Amateurs A 2019"]
[Site "Caleta"]
[Date "2019.01.24"]
[Round "4"]
[White "Pink, Joshua"]
[Black "Tkadlecek, Petr"]
[Result "1-0"]
[ECO "A00"]
[WhiteElo "1890"]
[BlackElo "1719"]
[Annotator "NA"]
[PlyCount "55"]
[EventDate "2019.01.18"]
[EventType "swiss"]
[EventCountry "GGB"]
[SourceTitle "playchess.com"]
[Source "ChessBase"]
[SourceQuality "1"]
[TimeControl "6600+10"]

1. e4 {[%emt 0:00:37]} d5 {[%emt 0:00:10]} 2. Nc3 {[%emt 0:00:06]} d4 {[%emt 0:01:00]} 3. Nce2 {[%emt 0:00:07]} e5 {[%emt 0:00:09]} 4. Ng3 {[%emt 0:00:04]} Nf6 {[%emt 0:02:10]} 5. Bc4 {[%emt 0:00:07]} Bg4 {[%emt 0:02:30]} 6. Nf3 {[%emt 0:00:52]} Bd6 {[%emt 0:00:22]} 7. h3 {[%emt 0:01:08]} Bd7 {[%emt 0:02:08]} 8. d3 {[%emt 0:00:27]} h6 {[%emt 0:00:24]} 9. Bd2 {[%emt 0:01:58]} b5 {[%emt 0:01:00]} 10. Bb3 {[%emt 0:00:14]} a5 {[%emt 0:00:40]} 11. a4 {[%emt 0:00:53]} b4 {[%emt 0:01:26]} 12. Nh2 {[%emt 0:01:29]} Nh7 {[%emt 0:02:32]} 13. Nf5 {[%emt 0:05:18]} Qf6 {[%emt 0:03:17]} 14. Ng4 {[%emt 0:01:49]} Qg6 {[%emt 0:02:03]} 15. Qf3 {[%emt 0:11:26]} O-O {[%emt 0:02:26]} 16. Nh4 {[%emt 0:06:05]} Bxg4 {[%emt 0:04:17]} 17. hxg4 {[%emt 0:01:39]} Qf6 {[%emt 0:01:33]} 18. Nf5 {[%emt 0:00:08]} Nd7 {[%emt 0:05:20]} 19. O-O-O {[%emt 0:08:44]} Ng5 {[%emt 0:03:25]} 20. Qg3 {[%emt 0:01:39]} Nc5 {[%emt 0:02:22]} 21. Bd5 {[%emt 0:00:28]} Rac8 {[%emt 0:05:20]} 22. Rh5 {[%emt 0:00:10]} Nce6 {[%emt 0:04:33]} 23. Rdh1 {[%emt 0:06:45]} Nf4 {[%emt 0:02:28]} 24. Bxf4 {[%emt 0:00:26]} exf4 {[%emt 0:00:50]} 25. Qh2 {[%emt 0:01:36]} g6 {[%emt 0:08:54]} 26. Rxh6 {[%emt 0:01:41]} Be5 {[%emt 0:01:12]} 27. Ne7+ {[%emt 0:03:01]} Qxe7 {[%emt 0:00:39]} 28. Rh5 {[%emt 0:01:31]} 1-0

[Event "Gibraltar Amateurs A 2019"]
[Site "Caleta"]
[Date "2019.01.24"]
[Round "4"]
[White "Gonzalez Pabollet, Jesus Maria S"]
[Black "Guegan, Michel"]
[Result "1-0"]
[ECO "A47"]
[WhiteElo "1875"]
[BlackElo "1708"]
[Annotator "NA"]
[PlyCount "57"]
[EventDate "2019.01.18"]
[EventType "swiss"]
[EventCountry "GGB"]
[SourceTitle "playchess.com"]
[Source "ChessBase"]
[SourceQuality "1"]
[TimeControl "6600+10"]

1. Nf3 {[%emt 0:02:02]} Nf6 {[%emt 0:00:18]} 2. d4 {[%emt 0:00:25]} e6 {[%emt 0:00:14]} 3. Bf4 {[%emt 0:01:16]} c5 {[%emt 0:03:01]} 4. e3 {[%emt 0:01:13]} b6 {[%emt 0:03:13]} 5. Bd3 {[%emt 0:03:51]} Nc6 {[%emt 0:02:48]} 6. O-O {[%emt 0:01:56]} Bb7 {[%emt 0:03:10]} 7. h3 {[%emt 0:12:02]} cxd4 {[%emt 0:08:24]} 8. exd4 {[%emt 0:01:51]} Nb4 $14 {[%emt 0:06:31]} 9. Be2 {[%emt 0:01:35]} Be4 {[%emt 0:01:14]} 10. Ne1 {[%emt 0:06:10]} Rc8 {[%emt 0:02:36]} 11. c3 {[%emt 0:03:25]} Nbd5 {[%emt 0:05:05]} 12. Be5 {[%emt 0:07:18]} Be7 {[%emt 0:03:24]} 13. Nd2 {[%emt 0:01:18]} O-O {[%emt 0:19:07]} 14. c4 {[%emt 0:13:01]} Nc7 {[%emt 0:06:24]} 15. Bxf6 {[%emt 0:00:35]} Bxg2 {[%emt 0:07:46]} 16. Bxe7 {[%emt 0:01:08]} Qxe7 {[%emt 0:00:07]} 17. Nxg2 {[%emt 0:01:06]} f5 {[%emt 0:00:52]} 18. f4 {[%emt 0:02:11]} g5 {[%emt 0:01:23]} 19. fxg5 {[%emt 0:01:34]} Qxg5 {[%emt 0:00:02]} 20. Nf3 {[%emt 0:00:44]} Qg3 {[%emt 0:00:46]} 21. Qd2 {[%emt 0:10:06]} f4 {[%emt 0:02:51]} 22. Qe1 {[%emt 0:08:13]} Qxh3 {[%emt 0:01:11]} 23. Qh4 {[%emt 0:00:37]} Qg3 {[%emt 0:05:10]} 24. Qxg3+ {[%emt 0:00:43]} fxg3 {[%emt 0:00:07]} 25. Ne5 {[%emt 0:00:41]} Rf5 {[%emt 0:05:26]} 26. Ne3 {[%emt 0:04:55]} Rg5 {[%emt 0:00:53]} 27. Nf7 {[%emt 0:03:43]} Rg7 {[%emt 0:00:30]} 28. Nh6+ {[%emt 0:00:54]} Kh8 {[%emt 0:00:13]} 29. Rf6 {[%emt 0:01:28]} 1-0